fUSD/lending_fUSD_20250113
["ID","MTS","AMOUNT","RATE_DAILY","PERIOD"]
[348804855,1736789454626,-500.0,0.00010544,2]
[348804857,1736789454635,-500.0,0.00010544,2]
[348804859,1736789454645,-1474.42,0.00010544,2]
[348804861,1736789454654,-500.0,0.00010544,2]
[348804863,1736789454664,-1194.18,0.00010544,2]
[348804865,1736789454674,-5242.15,0.00010544,2]
[348804867,1736789454683,-602.8,0.00010544,2]
[348804869,1736789454692,-500.0,0.00010544,2]
[348804871,1736789454701,-2360.29,0.00010544,2]
[348804873,1736789454710,-596.47,0.00010544,2]
[348804875,1736789454719,-500.0,0.00010544,2]
[348804877,1736789454728,-1352.23,0.00010544,2]
[348804879,1736789454737,-500.0,0.00010544,2]
[348804881,1736789454746,-893.39,0.00010544,2]
[348804883,1736789454755,-500.0,0.00010544,2]
[348804885,1736789454764,-1603.75,0.00010544,2]
[348804887,1736789454773,-500.0,0.00010544,2]
[348804888,1736789454782,-500.0,0.00010544,2]
[348804890,1736789454791,-500.0,0.00010544,2]
[348804892,1736789454800,-1295.57,0.00010544,2]
[348804894,1736789454810,-500.0,0.00010544,2]
[348804896,1736789454819,-2161.69,0.00010544,2]
[348804898,1736789454828,-500.0,0.00010544,2]
[348804900,1736789454837,-1828.01,0.00010544,2]
[348804902,1736789454846,-500.0,0.00010544,2]
[348804904,1736789454856,-1024.72,0.00010544,2]
[348804906,1736789454865,-3242.95,0.00010544,2]
[348804908,1736789454874,-500.0,0.00010544,2]
[348804910,1736789454883,-500.0,0.00010544,2]
[348804912,1736789454892,-541.15,0.00010544,2]
[348804914,1736789454901,-962.13,0.00010544,2]
[348804916,1736789454910,-500.0,0.00010544,2]
[348804918,1736789454919,-977.39,0.00010544,2]
[348804920,1736789454928,-3349.73,0.00010544,2]
[348804922,1736789454938,-500.0,0.00010544,2]
[348804924,1736789454947,-500.0,0.00010544,2]
[348804926,1736789454956,-755.384315,0.00010544,2]
[348804928,1736789454966,-1792.63,0.00010544,2]
[348804930,1736789454975,-500.0,0.00010544,2]
[348804932,1736789454984,-1992.33,0.00010544,2]
[348804934,1736789454993,-500.0,0.00010544,2]
[348804936,1736789455003,-898.56,0.00010544,2]
[348804938,1736789455012,-500.0,0.00010544,2]
[348804940,1736789455021,-2892.25,0.00010544,2]
[348804942,1736789455031,-168.93,0.00010544,2]
[348804944,1736789455040,-573.54,0.00010544,2]
[348804946,1736789455049,-509.68,0.00010544,2]
[348804948,1736789455058,-562.095232,0.00010544,2]
[348804950,1736789455067,-500.0,0.00010544,2]
[348804952,1736789455077,-2613.03,0.00010544,2]
[348804954,1736789455086,-692.69,0.00010544,2]
[348804956,1736789455095,-720.13,0.00010544,2]
[348804958,1736789455104,-500.0,0.00010544,2]
[348804960,1736789455114,-500.0,0.00010544,2]
[348804962,1736789455123,-732.19,0.00010544,2]
[348804964,1736789455132,-500.0,0.00010544,2]
[348804966,1736789455141,-1361.66,0.00010544,2]
[348804968,1736789455151,-626.77,0.00010544,2]
[348804970,1736789455160,-1022.89,0.00010544,2]
[348804972,1736789455170,-568.68,0.00010544,2]
[348804974,1736789455179,-500.0,0.00010544,2]
[348804976,1736789455188,-606.7,0.00010544,2]
[348804978,1736789455199,-500.0,0.00010544,2]
[348804980,1736789455209,-500.0,0.00010544,2]
[348804982,1736789455219,-500.0,0.00010544,2]
[348804984,1736789455232,-500.0,0.00010544,2]
[348804986,1736789455242,-500.0,0.00010544,2]
[348804988,1736789455252,-500.0,0.00010544,2]
[348804990,1736789455261,-500.0,0.00010544,2]
[348804992,1736789455272,-1699.69,0.00010544,2]
[348804994,1736789455281,-573.82,0.00010544,2]
[348804996,1736789455290,-500.0,0.00010544,2]
[348804998,1736789455300,-506.25,0.00010544,2]
[348805000,1736789455311,-500.0,0.00010544,2]
[348805002,1736789455321,-500.0,0.00010544,2]
[348805004,1736789455331,-500.0,0.00010545,2]
[348805006,1736789455340,-749.48,0.00010545,2]
[348805008,1736789455350,-1255.89,0.00010545,2]
[348805010,1736789455359,-961.31,0.00010545,2]
[348805012,1736789455369,-2512.37,0.00010545,2]
[348805014,1736789455379,-1325.84,0.00010545,2]
[348805016,1736789455388,-1827.85,0.00010545,2]
[348805018,1736789455397,-3096.14,0.00010545,2]
[348805020,1736789455407,-1519.79,0.00010545,2]
[348805022,1736789455418,-500.0,0.00010545,2]
[348805024,1736789455427,-500.0,0.00010545,2]
[348805026,1736789455438,-500.0,0.00010545,2]
[348805028,1736789455447,-500.0,0.00010545,2]
[348805031,1736789455457,-3417.73,0.00010545,2]
[348805033,1736789455467,-500.0,0.00010545,2]
[348805035,1736789455477,-500.0,0.00010545,2]
[348805037,1736789455486,-500.0,0.00010545,2]
[348805038,1736789455496,-500.0,0.00010545,2]
[348805041,1736789455506,-500.0,0.00010545,2]
[348805043,1736789455516,-500.0,0.00010545,2]
[348805045,1736789455526,-500.0,0.00010545,2]
[348805046,1736789455536,-649.53,0.00010545,2]
[348805047,1736789455545,-500.0,0.00010545,2]
[348805048,1736789455554,-500.0,0.00010545,2]
[348805049,1736789455563,-500.0,0.00010545,2]
[348805050,1736789455573,-500.0,0.00010545,2]
[348805051,1736789455582,-500.0,0.00010545,2]
[348805052,1736789455591,-500.0,0.00010545,2]
[348805053,1736789455600,-500.0,0.00010545,2]
[348805054,1736789455609,-500.0,0.00010545,2]
[348805055,1736789455618,-500.0,0.00010545,2]
[348805056,1736789455627,-500.0,0.00010545,2]
[348805058,1736789455637,-500.0,0.00010545,2]
[348805060,1736789455646,-494.0,0.00010545,2]
[348805062,1736789455659,-500.0,0.00010545,2]
[348805064,1736789455669,-648.95830381,0.00010545,2]
[348805066,1736789455679,-500.0,0.00010545,2]
[348805068,1736789455688,-500.0,0.00010545,2]
[348805070,1736789455697,-463.34378142,0.00010545,2]
[348805072,1736789455707,-500.0,0.00010545,2]
[348805074,1736789455716,-500.0,0.00010545,2]
[348805076,1736789455725,-500.0,0.00010545,2]
[348805078,1736789455735,-517.54,0.00010545,2]
[348805080,1736789455744,-500.0,0.00010545,2]
[348805082,1736789455753,-500.0,0.00010545,2]
[348805084,1736789455762,-500.0,0.00010545,2]
[348805086,1736789455772,-500.0,0.00010545,2]
[348805088,1736789455781,-500.0,0.00010545,2]
[348805090,1736789455791,-580.64,0.00010545,2]
[348805092,1736789455800,-500.0,0.00010545,2]
[348805094,1736789455809,-500.0,0.00010545,2]
[348805096,1736789455819,-500.0,0.00010545,2]
[348805098,1736789455828,-500.0,0.00010545,2]
[348805100,1736789455838,-789.75,0.00010545,2]
[348805102,1736789455848,-599.80502619,0.00010545,2]
[348805104,1736789455857,-500.0,0.00010545,2]
[348805106,1736789455866,-500.0,0.00010545,2]
[348805108,1736789455877,-552.14,0.00010545,2]
[348805110,1736789455886,-500.0,0.00010545,2]
[348805112,1736789455896,-500.0,0.00010545,2]
[348805115,1736789455905,-500.0,0.00010545,2]
[348805117,1736789455919,-500.0,0.00010545,2]
[348805119,1736789455929,-500.0,0.00010545,2]
[348805121,1736789455938,-500.0,0.00010545,2]
[348805123,1736789455947,-369.09606204,0.00010545,2]
[348805125,1736789455957,-500.0,0.00010545,2]
[348805127,1736789455967,-500.0,0.00010545,2]
[348805129,1736789455976,-936.68,0.00010545,2]
[348805131,1736789455986,-500.0,0.00010545,2]
[348805133,1736789455995,-500.0,0.00010545,2]
[348805135,1736789456005,-500.0,0.00010545,2]
[348805136,1736789456014,-500.0,0.00010545,2]
[348805138,1736789456023,-548.55,0.00010545,2]
[348805141,1736789456033,-500.0,0.00010545,2]
[348805143,1736789456043,-500.0,0.00010545,2]
[348805144,1736789456052,-500.0,0.00010545,2]
[348805146,1736789456062,-500.0,0.00010545,2]
[348805148,1736789456071,-500.0,0.00010545,2]
[348805151,1736789456081,-500.0,0.00010545,2]
[348805153,1736789456091,-500.0,0.00010545,2]
[348805154,1736789456101,-500.0,0.00010545,2]
[348805156,1736789456110,-500.0,0.00010545,2]
[348805158,1736789456120,-917.73,0.00010545,2]
[348805160,1736789456129,-500.0,0.00010545,2]
[348805162,1736789456139,-528.22,0.00010545,2]
[348805165,1736789456148,-500.0,0.00010545,2]
[348805167,1736789456158,-500.0,0.00010545,2]
[348805169,1736789456172,-500.0,0.00010545,2]
[348805170,1736789456182,-618.14,0.00010545,2]
[348805172,1736789456191,-500.0,0.00010545,2]
[348805175,1736789456202,-1418.5,0.00010545,2]
[348805177,1736789456211,-650.64,0.00010545,2]
[348805179,1736789456221,-500.0,0.00010545,2]
[348805181,1736789456233,-500.0,0.00010545,2]
[348805183,1736789456243,-500.0,0.00010545,2]
[348805184,1736789456252,-500.0,0.00010545,2]
[348805186,1736789456263,-419.53850088,0.00010545,2]
[348805188,1736789456273,-500.0,0.00010545,2]
[348805190,1736789456284,-500.0,0.00010545,2]
[348805192,1736789456294,-500.0,0.00010545,2]
[348805195,1736789456304,-500.0,0.00010545,2]
[348805197,1736789456316,-500.0,0.00010545,2]
[348805199,1736789456327,-742.14,0.00010545,2]
[348805201,1736789456337,-156.85,0.00010545,2]
[348805203,1736789456347,-500.0,0.00010545,2]
[348805205,1736789456356,-1130.8,0.00010545,2]
[348805207,1736789456366,-500.0,0.00010545,2]
[348805209,1736789456375,-500.0,0.00010545,2]
[348805211,1736789456385,-500.0,0.00010545,2]
[348805213,1736789456395,-697.9,0.00010545,2]
[348805215,1736789456405,-500.0,0.00010545,2]
[348805217,1736789456419,-500.0,0.00010545,2]
[348805219,1736789456428,-759.61,0.00010545,2]
[348805221,1736789456438,-500.0,0.00010545,2]
[348805223,1736789456448,-500.0,0.00010545,2]
[348805225,1736789456459,-500.0,0.00010545,2]
[348805227,1736789456469,-500.0,0.00010545,2]
[348805229,1736789456479,-500.0,0.00010545,2]
[348805231,1736789456488,-500.0,0.00010545,2]
[348805233,1736789456498,-500.0,0.00010545,2]
[348805235,1736789456508,-500.0,0.00010545,2]
[348805237,1736789456518,-500.0,0.00010545,2]
[348805238,1736789456528,-2741.02,0.00010545,2]
[348805240,1736789456538,-757.35,0.00010545,2]
[348805241,1736789456547,-500.0,0.00010545,2]
[348805243,1736789456557,-500.0,0.00010545,2]
[348805245,1736789456567,-500.0,0.00010545,2]
[348805246,1736789456577,-703.48,0.00010545,2]
[348805248,1736789456586,-1444.04,0.00010545,2]
[348805250,1736789456596,-500.0,0.00010545,2]
[348805251,1736789456605,-500.0,0.00010545,2]
[348805253,1736789456614,-718.2,0.00010545,2]
[348805255,1736789456624,-3579.12,0.00010545,2]
[348805256,1736789456633,-589.58,0.00010545,2]
[348805258,1736789456642,-500.0,0.00010545,2]
[348805259,1736789456652,-500.0,0.00010545,2]
[348805261,1736789456666,-500.0,0.00010545,2]
[348805263,1736789456676,-1062.35,0.00010545,2]
[348805264,1736789456685,-689.6,0.00010545,2]
[348805266,1736789456695,-500.0,0.00010545,2]
[348805268,1736789456704,-580.40352711,0.00010545,2]
[348805269,1736789456715,-500.0,0.00010545,2]
[348805271,1736789456725,-1023.71,0.00010545,2]
[348805273,1736789456734,-500.0,0.00010545,2]
[348805275,1736789456744,-629.07,0.00010545,2]
[348805277,1736789456753,-500.0,0.00010545,2]
[348805278,1736789456763,-722.38,0.00010545,2]
[348805280,1736789456773,-564.7,0.00010545,2]
[348805282,1736789456783,-768.6,0.00010545,2]
[348805283,1736789456793,-500.0,0.00010545,2]
[348805285,1736789456802,-4003.4,0.00010545,2]
[348805286,1736789456812,-500.0,0.00010545,2]
[348805288,1736789456822,-682.62,0.00010545,2]
[348805290,1736789456832,-862.3,0.00010545,2]
[348805291,1736789456842,-500.0,0.00010545,2]
[348805293,1736789456852,-716.85,0.00010545,2]
[348805295,1736789456862,-1020.95,0.00010545,2]
[348805297,1736789456872,-500.0,0.00010545,2]
[348805298,1736789456882,-680.17,0.00010545,2]
[348805300,1736789456892,-500.0,0.00010545,2]
[348805302,1736789456902,-500.0,0.00010545,2]
[348805303,1736789456912,-500.0,0.00010545,2]
[348805305,1736789456922,-661.97,0.00010545,2]
[348805307,1736789456933,-976.49,0.00010545,2]
[348805309,1736789456951,-752.64,0.00010545,2]
[348805310,1736789456962,-1000.0,0.00010545,2]
[348805312,1736789456972,-714.39,0.00010545,2]
[348805314,1736789456982,-500.0,0.00010545,2]
[348805316,1736789456993,-780.26,0.00010545,2]
[348805318,1736789457003,-500.0,0.00010545,2]
[348805320,1736789457013,-500.0,0.00010545,2]
[348805321,1736789457023,-584.45,0.00010545,2]
[348805323,1736789457032,-239.57,0.00010545,2]
[348805325,1736789457044,-500.0,0.00010545,2]
[348805327,1736789457054,-699.85,0.00010545,2]
[348805328,1736789457063,-500.0,0.00010545,2]
[348805330,1736789457074,-474.15,0.00010545,2]
[348805332,1736789457083,-500.0,0.00010545,2]
[348805334,1736789457095,-500.0,0.00010545,2]
[348805336,1736789457104,-500.0,0.00010545,2]
[348805338,1736789457114,-1506.6,0.00010546,2]
[348805339,1736789457124,-1460.16,0.00010546,2]
[348805341,1736789457134,-872.27,0.00010546,2]
[348805343,1736789457145,-1766.08,0.00010546,2]
[348805345,1736789457155,-5849.77,0.00010546,2]
[348805347,1736789457168,-151.88432324,0.00010573,2]
[348805349,1736789457178,-160.3635708,0.00010573,2]
[348805350,1736789457187,-502.21299666,0.00010573,2]
[348805352,1736789457197,-151.41787428,0.00010573,2]
[348805354,1736789457207,-361.29025845,0.00010573,2]
[348805356,1736789457217,-500.0,0.00010573,2]
[348805358,1736789457228,-151.9083744,0.00010573,2]
[348805359,1736789457241,-2095.0,0.00010714,2]
[348805361,1736789457251,-429.81509458,0.00010785,2]
[348805363,1736789457260,-524.87,0.00010792,2]
[348805365,1736789457271,-1706.58,0.00010792,2]
[348805366,1736789457281,-590.15,0.00010792,2]
[348805368,1736789457291,-564.29,0.00010792,2]
[348805370,1736789457303,-728.34,0.00010792,2]
[348805372,1736789457313,-156.915755,0.00010802,2]
[348805374,1736789457323,-156.915755,0.00010802,2]
[348805375,1736789457334,-500.0,0.00010817,2]
[348805377,1736789457344,-520.42,0.00010817,2]
[348805379,1736789457354,-500.0,0.00010817,2]
[348805381,1736789457364,-500.0,0.00010817,2]
[348805382,1736789457374,-500.0,0.00010817,2]
[348805384,1736789457384,-466.4174585,0.00010817,2]
[348805386,1736789457394,-500.0,0.00010817,2]
[348805403,1736789457591,-500.0,0.00010817,2]
[348805405,1736789457602,-210.20807407,0.00010817,2]
[348805407,1736789457611,-500.0,0.00010817,2]
[348805408,1736789457621,-500.0,0.00010817,2]
[348805410,1736789457631,-500.0,0.00010817,2]
[348805413,1736789457643,-503.98197125,0.00010817,2]
[348805415,1736789457652,-500.0,0.00010817,2]
[348805416,1736789457663,-500.0,0.00010817,2]
[348805419,1736789457673,-519.96,0.00010817,2]
[348805420,1736789457682,-500.0,0.00010817,2]
[348805421,1736789457691,-500.0,0.00010817,2]
[348805422,1736789457700,-500.0,0.00010817,2]
[348805423,1736789457709,-503.04899765,0.00010817,2]
[348805424,1736789457718,-500.0,0.00010817,2]
[348805425,1736789457727,-500.0,0.00010817,2]
[348805426,1736789457736,-374.04551357,0.00010817,2]
[348805427,1736789457745,-500.0,0.00010817,2]
[348805428,1736789457754,-500.0,0.00010817,2]
[348805429,1736789457763,-500.0,0.00010817,2]
[348805430,1736789457772,-500.0,0.00010817,2]
[348805431,1736789457781,-500.0,0.00010817,2]
[348805432,1736789457789,-500.0,0.00010817,2]
[348805433,1736789457798,-500.0,0.00010817,2]
[348805434,1736789457807,-500.0,0.00010817,2]
[348805435,1736789457816,-500.0,0.00010817,2]
[348805436,1736789457825,-500.0,0.00010817,2]
[348805437,1736789457834,-500.0,0.00010817,2]
[348805438,1736789457843,-500.0,0.00010817,2]
[348805440,1736789457852,-500.0,0.00010817,2]
[348805441,1736789457861,-500.0,0.00010817,2]
[348805443,1736789457871,-500.0,0.00010817,2]
[348805445,1736789457880,-500.0,0.00010817,2]
[348805447,1736789457890,-500.0,0.00010817,2]
[348805449,1736789457899,-500.0,0.00010817,2]
[348805451,1736789457910,-500.0,0.00010817,2]
[348805453,1736789457920,-500.0,0.00010817,2]
[348805455,1736789457930,-500.0,0.00010817,2]
[348805458,1736789457939,-500.0,0.00010817,2]
[348805460,1736789457949,-500.0,0.00010817,2]
[348805462,1736789457959,-500.0,0.00010817,2]
[348805464,1736789457970,-500.0,0.00010817,2]
[348805466,1736789457979,-500.0,0.00010817,2]
[348805468,1736789457990,-500.0,0.00010817,2]
[348805470,1736789457999,-500.0,0.00010817,2]
[348805471,1736789458008,-500.0,0.00010817,2]
[348805473,1736789458018,-500.0,0.00010817,2]
[348805476,1736789458027,-500.0,0.00010817,2]
[348805478,1736789458037,-500.0,0.00010817,2]
[348805480,1736789458046,-500.0,0.00010817,2]
[348805482,1736789458057,-500.0,0.00010817,2]
[348805484,1736789458066,-500.0,0.00010817,2]
[348805486,1736789458076,-500.0,0.00010817,2]
[348805488,1736789458085,-245.40244956,0.00010817,2]
[348805490,1736789458094,-500.0,0.00010817,2]
[348805492,1736789458103,-500.0,0.00010817,2]
[348805493,1736789458113,-500.0,0.00010817,2]
[348805494,1736789458122,-500.0,0.00010817,2]
[348805495,1736789458131,-500.0,0.00010817,2]
[348805496,1736789458140,-500.0,0.00010817,2]
[348805497,1736789458149,-500.0,0.00010817,2]
[348805498,1736789458158,-500.0,0.00010817,2]
[348805499,1736789458169,-500.0,0.00010817,2]
[348805500,1736789458178,-500.0,0.00010817,2]
[348805501,1736789458187,-500.0,0.00010817,2]
[348805502,1736789458197,-500.0,0.00010817,2]
[348805503,1736789458206,-500.0,0.00010817,2]
[348805504,1736789458216,-500.0,0.00010817,2]
[348805505,1736789458227,-500.0,0.00010817,2]
[348805506,1736789458241,-500.0,0.00010817,2]
[348805507,1736789458251,-500.0,0.00010817,2]
[348805508,1736789458262,-500.0,0.00010817,2]
[348805509,1736789458274,-500.0,0.00010817,2]
[348805511,1736789458284,-500.0,0.00010817,2]
[348805513,1736789458294,-588.13498394,0.00010817,2]
[348805515,1736789458304,-500.0,0.00010817,2]
[348805517,1736789458314,-500.0,0.00010817,2]
[348805519,1736789458323,-500.0,0.00010817,2]
[348805521,1736789458332,-500.0,0.00010817,2]
[348805523,1736789458342,-500.0,0.00010817,2]
[348805525,1736789458352,-500.0,0.00010817,2]
[348805527,1736789458361,-500.0,0.00010817,2]
[348805529,1736789458370,-500.0,0.00010817,2]
[348805531,1736789458380,-500.0,0.00010817,2]
[348805533,1736789458389,-500.0,0.00010817,2]
[348805535,1736789458399,-500.0,0.00010817,2]
[348805536,1736789458411,-583.46291414,0.00010817,2]
[348805537,1736789458421,-500.0,0.00010817,2]
[348805538,1736789458432,-500.0,0.00010817,2]
[348805539,1736789458442,-500.0,0.00010817,2]
[348805540,1736789458451,-500.0,0.00010817,2]
[348805541,1736789458461,-500.0,0.00010817,2]
[348805542,1736789458471,-500.0,0.00010817,2]
[348805543,1736789458481,-500.0,0.00010817,2]
[348805544,1736789458492,-500.0,0.00010817,2]
[348805545,1736789458501,-500.0,0.00010817,2]
[348805546,1736789458512,-500.0,0.00010817,2]
[348805547,1736789458522,-500.0,0.00010817,2]
[348805548,1736789458532,-500.0,0.00010817,2]
[348805549,1736789458542,-500.0,0.00010817,2]
[348805550,1736789458552,-469.19382604,0.00010817,2]
[348805551,1736789458562,-500.0,0.00010817,2]
[348805552,1736789458572,-500.0,0.00010817,2]
[348805553,1736789458582,-500.0,0.00010817,2]
[348805554,1736789458591,-500.0,0.00010817,2]
[348805555,1736789458601,-500.0,0.00010817,2]
[348805556,1736789458610,-500.0,0.00010817,2]
[348805557,1736789458619,-500.0,0.00010817,2]
[348805558,1736789458628,-500.0,0.00010817,2]
[348805559,1736789458638,-500.0,0.00010817,2]
[348805560,1736789458648,-500.0,0.00010817,2]
[348805561,1736789458657,-500.0,0.00010817,2]
[348805562,1736789458668,-500.0,0.00010817,2]
[348805563,1736789458677,-500.0,0.00010817,2]
[348805564,1736789458686,-500.0,0.00010817,2]
[348805565,1736789458695,-500.0,0.00010817,2]
[348805566,1736789458705,-500.0,0.00010817,2]
[348805567,1736789458716,-500.0,0.00010817,2]
[348805568,1736789458726,-500.0,0.00010817,2]
[348805569,1736789458736,-500.0,0.00010817,2]
[348805570,1736789458745,-464.89600872,0.00010817,2]
[348805571,1736789458755,-500.0,0.00010817,2]
[348805572,1736789458764,-500.0,0.00010817,2]
[348805573,1736789458774,-500.0,0.00010817,2]
[348805574,1736789458783,-500.0,0.00010817,2]
[348805575,1736789458793,-500.0,0.00010817,2]
[348805576,1736789458802,-500.0,0.00010817,2]
[348805577,1736789458812,-424.11776375,0.00010817,2]
[348805578,1736789458821,-500.0,0.00010817,2]
[348805579,1736789458830,-500.0,0.00010817,2]
[348805580,1736789458840,-500.0,0.00010817,2]
[348805581,1736789458849,-500.0,0.00010817,2]
[348805582,1736789458859,-500.0,0.00010817,2]
[348805583,1736789458868,-500.0,0.00010817,2]
[348805584,1736789458878,-500.0,0.00010817,2]
[348805585,1736789458887,-1887.52,0.00010817,2]
[348805586,1736789458896,-500.0,0.00010817,2]
[348805587,1736789458906,-500.0,0.00010817,2]
[348805588,1736789458918,-500.0,0.00010817,2]
[348805589,1736789458928,-500.0,0.00010817,2]
[348805590,1736789458937,-500.0,0.00010817,2]
[348805591,1736789458946,-500.0,0.00010817,2]
[348805594,1736789458956,-500.0,0.00010817,2]
[348805596,1736789458965,-608.24957837,0.00010817,2]
[348805598,1736789458975,-506.91,0.00010817,2]
[348805599,1736789458984,-500.0,0.00010817,2]
[348805601,1736789458993,-500.0,0.00010817,2]
[348805603,1736789459003,-500.0,0.00010817,2]
[348805604,1736789459013,-500.0,0.00010817,2]
[348805605,1736789459023,-500.0,0.00010817,2]
[348805606,1736789459033,-500.0,0.00010817,2]
[348805607,1736789459042,-500.0,0.00010817,2]
[348805608,1736789459052,-500.0,0.00010817,2]
[348805609,1736789459062,-500.0,0.00010817,2]
[348805610,1736789459072,-500.0,0.00010817,2]
[348805611,1736789459081,-500.0,0.00010817,2]
[348805612,1736789459091,-500.0,0.00010817,2]
[348805613,1736789459102,-500.0,0.00010817,2]
[348805614,1736789459111,-500.0,0.00010817,2]
[348805615,1736789459121,-500.0,0.00010817,2]
[348805616,1736789459131,-500.0,0.00010817,2]
[348805617,1736789459141,-500.0,0.00010817,2]
[348805618,1736789459151,-500.0,0.00010817,2]
[348805619,1736789459164,-500.0,0.00010817,2]
[348805620,1736789459174,-500.0,0.00010817,2]
[348805621,1736789459184,-488.31373422,0.00010817,2]
[348805622,1736789459195,-500.0,0.00010817,2]
[348805623,1736789459205,-500.0,0.00010817,2]
[348805624,1736789459214,-500.0,0.00010817,2]
[348805625,1736789459224,-500.0,0.00010817,2]
[348805626,1736789459237,-500.0,0.00010817,2]
[348805627,1736789459247,-500.0,0.00010817,2]
[348805628,1736789459257,-380.59110718,0.00010817,2]
[348805629,1736789459267,-500.0,0.00010817,2]
[348805630,1736789459279,-500.0,0.00010817,2]
[348805631,1736789459288,-500.0,0.00010817,2]
[348805632,1736789459298,-500.0,0.00010817,2]
[348805633,1736789459307,-500.0,0.00010817,2]
[348805634,1736789459320,-500.0,0.00010817,2]
[348805635,1736789459331,-500.0,0.00010817,2]
[348805636,1736789459340,-500.0,0.00010818,2]
[348805637,1736789459349,-500.0,0.00010818,2]
[348805638,1736789459359,-500.0,0.00010818,2]
[348805639,1736789459369,-515.36126512,0.00010818,2]
[348805640,1736789459378,-500.0,0.00010818,2]
[348805641,1736789459388,-515.03,0.00010818,2]
[348805642,1736789459398,-500.0,0.00010818,2]
[348805643,1736789459408,-641.14,0.00010818,2]
[348805644,1736789459420,-500.0,0.00010818,2]
[348805645,1736789459429,-282.68238625,0.00010818,2]
[348805646,1736789459439,-550.42,0.00010818,2]
[348805647,1736789459448,-500.0,0.00010818,2]
[348805648,1736789459457,-500.0,0.00010818,2]
[348805649,1736789459467,-500.0,0.00010818,2]
[348805650,1736789459477,-500.0,0.00010818,2]
[348805651,1736789459486,-500.0,0.00010818,2]
[348805652,1736789459495,-500.0,0.00010818,2]
[348805653,1736789459506,-500.0,0.00010818,2]
[348805654,1736789459515,-500.0,0.00010818,2]
[348805655,1736789459525,-500.0,0.00010818,2]
[348805656,1736789459535,-500.0,0.00010818,2]
[348805657,1736789459544,-500.0,0.00010818,2]
[348805658,1736789459554,-500.0,0.00010818,2]
[348805659,1736789459564,-500.0,0.00010818,2]
[348805660,1736789459573,-500.0,0.00010818,2]
[348805661,1736789459583,-500.0,0.00010818,2]
[348805662,1736789459597,-500.0,0.00010818,2]
[348805663,1736789459607,-519.61,0.00010818,2]
[348805664,1736789459616,-500.0,0.00010818,2]
[348805665,1736789459626,-504.63,0.00010818,2]
[348805666,1736789459636,-500.0,0.00010818,2]
[348805667,1736789459646,-752.85,0.00010818,2]
[348805668,1736789459655,-427.19,0.00010818,2]
[348805669,1736789459667,-337.08,0.00010818,2]
[348805670,1736789459676,-576.72,0.00010818,2]
[348805671,1736789459686,-500.0,0.00010818,2]
[348805672,1736789459696,-500.0,0.00010818,2]
[348805673,1736789459706,-500.0,0.00010818,2]